bitfinex/quotes_SOLUSD_20250308
["timestamp","ask_amount","ask_price","bid_price","bid_amount"]
[1741460542052,0.03,138.12,138.08,13.80069345]
[1741460543666,0.03,138.12,138.08,19.59409345]
[1741460548089,13.83069345,138.12,138.08,5.7934]
[1741460548998,13.80069345,138.09,138.04,13.80069345]
[1741460549200,13.80069345,138.08,138.04,5.7954]
[1741460549898,87.6717,138.11,138.04,5.7954]
[1741460549899,13.80069345,138.09,138.04,19.59609345]
[1741460550104,101.47239345,138.11,138.06,19.59519345]
[1741460550287,81.3,138.11,138.07,13.80069345]
[1741460550593,13.83069345,138.12,138.07,13.80069345]
[1741460551894,13.80069345,138.11,138.06,13.80069345]
[1741460552072,13.80069345,138.1,138.05,19.59569345]
[1741460552392,13.83069345,138.12,138.07,13.80069345]
[1741460554087,13.83069345,138.12,138.07,19.59449345]
[1741460554276,13.83069345,138.12,138.07,5.7938]
[1741460554668,13.83069345,138.12,138.07,19.59449345]
[1741460556158,13.83069345,138.12,138.07,5.7938]
[1741460558081,13.83069345,138.12,138.07,19.59449345]
[1741460558277,0.03,138.12,138.09,13.80069345]
[1741460559678,13.83069345,138.12,138.07,7.9335]
[1741460559880,13.80069345,138.11,138.07,6.38]
[1741460560099,13.80069345,138.11,138.07,12.1741]
[1741460561982,13.80069345,138.11,138.07,5.7941]
[1741460562282,13.80069345,138.11,138.06,19.59509345]
[1741460562486,13.80069345,138.11,138.06,5.7944]
[1741460563496,13.80069345,138.11,138.06,19.59509345]
[1741460565583,13.83069345,138.12,138.06,19.59509345]
[1741460565781,13.83069345,138.12,138.07,13.80069345]
[1741460567084,13.83069345,138.12,138.09,13.80069345]
[1741460567085,0.03,138.12,138.09,13.80069345]
[1741460569395,0.03,138.12,138.1,5.7929]
[1741460569593,0.03,138.12,138.1,19.59359345]
[1741460570073,0.03,138.12,138.11,13.80069345]
[1741460570271,0.03,138.12,138.1,19.59359345]
[1741460572388,0.03,138.12,138.1,5.7929]
[1741460576093,0.03,138.12,138.1,19.59359345]
[1741460579881,0.03,138.12,138.09,7.3488]
[1741460580786,13.83069345,138.12,138.08,5.7937]
[1741460581101,13.80069345,138.11,138.06,13.80069345]
[1741460581283,0.03,138.12,138.06,13.80069345]
[1741460581284,13.83069345,138.12,138.06,13.80069345]
[1741460581473,13.83069345,138.12,138.07,13.80069345]
[1741460582076,13.83069345,138.12,138.07,19.59449345]
[1741460584016,13.83069345,138.12,138.07,5.7938]
[1741460584910,13.80069345,138.11,138.06,19.59519345]
[1741460585134,13.80069345,138.09,138.05,0.033]
[1741460585596,13.80069345,138.1,138.05,0.033]
[1741460586107,13.80069345,138.1,138.05,39.62859345]
[1741460587325,13.80069345,138.08,138.05,0.033]
[1741460587540,13.80069345,138.06,138.05,0.033]
[1741460591214,13.80069345,138.07,138.05,0.033]
[1741460591410,13.80069345,138.08,138.05,0.033]
[1741460591609,81.3,138.09,138.05,0.033]
[1741460591813,81.33,138.12,138.05,13.83369345]
[1741460592028,13.80069345,138.11,138.05,13.83369345]
[1741460592227,95.13069345,138.12,138.06,13.80069345]
[1741460592610,13.80069345,138.11,138.06,13.80069345]
[1741460593332,13.80069345,138.11,138.07,5.7941]
[1741460593727,6.2976843,138.11,138.07,5.7941]
[1741460593932,81.33,138.12,138.07,5.7941]
[1741460594120,95.13069345,138.12,138.07,5.7941]
[1741460594317,13.83069345,138.12,138.07,19.59479345]
[1741460596340,13.83069345,138.12,138.07,5.7941]
[1741460597034,13.83069345,138.12,138.07,19.59479345]
[1741460597435,0.03,138.12,138.08,13.80069345]
[1741460597616,0.03,138.12,138.09,13.80069345]
[1741460598031,0.03,138.12,138.1,5.7929]
[1741460598843,0.03,138.12,138.08,19.59429345]
[1741460599042,0.03,138.12,138.06,19.59519345]
[1741460599043,13.80069345,138.11,138.06,19.59519345]
[1741460600230,13.80069345,138.1,138.06,5.7945]
[1741460600420,13.80069345,138.11,138.06,19.59519345]
[1741460600623,13.83069345,138.12,138.06,19.59519345]
[1741460600935,13.80069345,138.11,138.06,19.59519345]
[1741460601728,13.83069345,138.12,138.07,13.80069345]
[1741460602050,0.03,138.12,138.08,13.80069345]
[1741460602237,0.03,138.12,138.09,5.7933]
[1741460603568,0.03,138.12,138.11,13.80069345]
[1741460604146,0.03,138.12,138.09,28.1748]
[1741460604147,13.83069345,138.12,138.09,12.1733]
[1741460604343,13.83069345,138.12,138.09,5.7933]
[1741460604650,0.03,138.12,138.09,5.7933]
[1741460605353,0.03,138.12,138.09,19.59399345]
[1741460605825,0.03,138.12,138.11,13.80069345]
[1741460607451,0.03,138.12,138.11,19.59309345]
[1741460607658,0.03,138.16,138.11,89.27706725]
[1741460607950,0.03,138.16,138.14,13.80069345]
[1741460608848,0.03,138.16,138.11,20.2736]
[1741460608849,0.03,138.16,138.13,13.80069345]
[1741460610174,0.03,138.16,138.13,19.59189345]
[1741460612142,0.03,138.16,138.12,13.80069345]
[1741460612342,0.03,138.16,138.11,19.59309345]
[1741460612549,0.03,138.16,138.13,13.80069345]
[1741460613150,0.03,138.16,138.12,13.80069345]
[1741460613346,0.03,138.16,138.1,7.3109]
[1741460613542,13.80069345,138.15,138.1,7.3109]
[1741460613745,0.03,138.16,138.11,13.80069345]
[1741460613746,13.83069345,138.16,138.11,13.80069345]
[1741460613945,0.03,138.16,138.11,13.80069345]
[1741460614470,0.03,138.16,138.12,13.80069345]
[1741460615654,0.03,138.16,138.13,5.7916]
[1741460620462,0.03,138.16,138.12,5.7919]
[1741460622868,0.03,138.16,138.12,5.8249]
[1741460625451,13.80069345,138.15,138.12,0.033]
[1741460627065,63.83069345,138.16,138.12,0.033]
[1741460628142,13.80069345,138.15,138.12,0.033]
[1741460628455,13.80069345,138.14,138.12,0.033]
[1741460628849,13.80069345,138.13,138.12,0.033]
[1741460629562,13.80069345,138.14,138.12,0.033]
[1741460630842,137.1205,138.16,138.12,0.033]
[1741460630843,95.13069345,138.16,138.12,0.033]
[1741460631875,13.80069345,138.14,138.12,0.033]
[1741460636877,13.80069345,138.15,138.12,0.033]
[1741460639082,13.80069345,138.14,138.12,0.033]
[1741460640452,13.80069345,138.15,138.12,0.033]
[1741460647986,13.83069345,138.15,138.12,0.033]
[1741460649992,0.03,138.15,138.12,0.033]
[1741460652095,13.83069345,138.15,138.12,0.033]
[1741460656108,13.80069345,138.14,138.12,0.033]
[1741460657110,13.80069345,138.13,138.12,0.033]
[1741460659285,19.59229345,138.13,138.12,0.033]
[1741460659810,69.59229345,138.13,138.12,0.033]
[1741460660691,69.62229345,138.13,138.12,0.033]
[1741460660884,150.92229345,138.13,138.12,0.033]
[1741460663121,169.57194231,138.13,138.12,0.033]
[1741460663296,143.47471611,138.13,138.12,0.033]
[1741460664328,159.76556493,138.13,138.12,0.033]
[1741460664614,104.56279113,138.13,138.12,0.033]
[1741460664810,30.12154227,138.13,138.12,0.033]
[1741460665197,104.56279113,138.13,138.12,0.033]
[1741460665402,88.27194231,138.13,138.12,0.033]
[1741460699817,5.7929,138.1,138.09,0.033]
[1741460700110,19.59359345,138.1,138.09,0.033]
[1741460703242,100.89359345,138.1,138.09,0.033]
[1741460703745,117.2007835,138.1,138.09,0.033]
[1741460707942,123.5607835,138.1,138.09,0.033]
[1741460710295,117.7678835,138.1,138.09,0.033]
[1741460710452,97.60719005,138.1,138.09,1.569]
[1741460710624,111.4078835,138.1,138.09,1.569]
[1741460711054,50.0,138.06,138.05,0.033]
[1741460711234,70.16069345,138.06,138.05,0.033]
[1741460712450,75.95519345,138.06,138.05,0.033]
[1741460712872,81.81119183,138.06,138.05,0.033]
[1741460713564,75.95519345,138.06,138.05,0.033]
[1741460719573,70.0,138.03,138.01,0.033]
[1741460719784,70.0,138.03,138.0,0.033]
[1741460719785,95.10069345,138.02,138.0,0.033]
[1741460719947,13.80069345,138.01,138.0,0.033]
[1741460721177,19.59729345,138.01,138.0,0.033]
[1741460721471,25.95729345,138.01,138.0,0.033]
[1741460728571,70.0,137.99,137.98,0.033]
[1741460728764,83.80069345,137.99,137.98,0.033]
[1741460728960,157.65311611,137.99,137.98,0.033]
[1741460729272,83.80069345,137.99,137.98,0.033]
[1741460730293,83.80069345,137.99,137.95,0.033]
[1741460730294,20.0,137.93,137.87,1.6008]
[1741460730579,5.8004,137.92,137.87,1.6008]
[1741460730956,13.80069345,137.9,137.87,1.6008]
[1741460732282,13.80069345,137.89,137.87,1.6008]
[1741460732454,13.80069345,137.92,137.87,1.6008]
[1741460732863,13.80069345,137.92,137.87,15.40149345]
[1741460733061,13.80069345,137.9,137.87,1.6008]
[1741460735665,13.80069345,137.91,137.87,1.6008]
[1741460735864,13.80069345,137.91,137.87,7.4033]
[1741460736064,13.80069345,137.92,137.87,7.4033]
[1741460736264,13.80069345,137.92,137.87,1.6008]
[1741460737086,13.80069345,137.92,137.87,7.4031]
[1741460737291,13.80069345,137.93,137.88,13.80069345]
[1741460737989,13.80069345,137.93,137.87,7.4031]
[1741460737990,13.80069345,137.92,137.87,21.20379345]
[1741460741971,13.80069345,137.93,137.87,21.20379345]
[1741460742166,13.80069345,137.94,137.88,13.80069345]
[1741460742800,13.80069345,137.94,137.89,13.80069345]
[1741460743288,13.80069345,137.94,137.9,6.2242]
[1741460743588,19.60029345,137.94,137.9,6.2242]
[1741460744987,13.80069345,137.94,137.9,6.2242]
[1741460745202,13.83069345,137.95,137.91,1.6213]
[1741460745484,19.62989345,137.95,137.91,1.6213]
[1741460745877,13.80069345,137.94,137.91,1.6213]
[1741460746378,13.80069345,137.93,137.91,1.6213]
[1741460746876,5.8004,137.92,137.89,1.6213]
[1741460747088,19.60079345,137.93,137.89,1.6213]
[1741460749475,13.80069345,137.92,137.89,1.6213]
[1741460750597,5.8008,137.91,137.89,1.6213]
[1741460751998,19.60149345,137.91,137.89,1.6213]
[1741460754094,13.80069345,137.9,137.87,0.033]
[1741460754297,13.80069345,137.89,137.87,0.033]
[1741460755699,19.60249345,137.89,137.87,0.033]
[1741460757705,13.80069345,137.88,137.87,0.033]
[1741460758490,19.60279345,137.88,137.87,0.033]
[1741460759408,13.80069345,137.88,137.87,0.033]
[1741460759589,13.80069345,137.89,137.87,0.033]
[1741460761212,13.80069345,137.88,137.87,0.033]
[1741460763206,19.60279345,137.88,137.87,0.033]
[1741460763513,13.80069345,137.88,137.87,0.033]
[1741460764322,19.60279345,137.88,137.87,0.033]
[1741460767920,13.80069345,137.89,137.87,0.033]
[1741460768238,13.80069345,137.89,137.85,0.6329]
[1741460770417,13.80069345,137.88,137.85,0.6329]
[1741460770607,19.60279345,137.88,137.85,0.6329]
[1741460770815,13.80069345,137.89,137.85,0.6329]
[1741460771620,5.8013,137.9,137.85,20.23689345]
[1741460771621,13.80069345,137.9,137.85,20.23689345]
[1741460771815,13.80069345,137.89,137.85,0.6329]
[1741460772406,87.0679,137.91,137.85,0.6329]
[1741460772720,13.80069345,137.89,137.85,0.6329]
[1741460773630,13.80069345,137.88,137.85,0.6329]
[1741460773923,5.8018,137.89,137.85,0.6329]
[1741460774122,13.80069345,137.88,137.85,0.6329]
[1741460774528,13.80069345,137.87,137.85,0.6329]
[1741460774929,13.80069345,137.88,137.85,0.6329]
[1741460775824,13.80069345,137.87,137.85,0.6329]
[1741460776024,13.80069345,137.87,137.84,6.2235]
[1741460776210,13.80069345,137.87,137.82,21.20929345]
[1741460777630,19.60329345,137.87,137.82,21.20929345]
[1741460780440,19.63329345,137.87,137.82,21.20929345]
[1741460782131,19.63329345,137.87,137.82,15.40479345]
[1741460783529,13.83069345,137.87,137.82,21.20929345]
[1741460784242,13.80069345,137.86,137.82,1.6041]
[1741460784554,13.80069345,137.84,137.81,0.033]
[1741460784845,13.80069345,137.85,137.81,0.033]
[1741460787564,19.60409345,137.85,137.81,0.033]
[1741460788057,13.80069345,137.85,137.81,0.033]
[1741460789065,19.60419345,137.85,137.81,0.033]
[1741460789560,13.80069345,137.84,137.81,0.033]
[1741460790964,19.60419345,137.85,137.81,0.033]
[1741460792035,13.80069345,137.84,137.81,0.033]
[1741460795555,19.60419345,137.85,137.81,0.033]
[1741460795956,13.80069345,137.84,137.81,0.033]
[1741460799040,13.80069345,137.85,137.81,0.033]
[1741460799245,13.80069345,137.85,137.81,13.83369345]
[1741460799449,13.80069345,137.84,137.81,0.033]
[1741460801455,13.80069345,137.85,137.81,13.83369345]
[1741460801652,13.80069345,137.85,137.81,0.033]
[1741460801953,13.80069345,137.84,137.81,0.033]
[1741460802939,19.60449345,137.84,137.81,0.033]
[1741460803764,13.80069345,137.84,137.81,0.033]
[1741460805865,13.80069345,137.82,137.81,0.033]
[1741460806960,19.60529345,137.82,137.81,0.033]
[1741460809464,32.63909345,137.82,137.81,0.033]
[1741460809761,51.28874231,137.82,137.81,0.033]
[1741460817272,44.63494231,137.82,137.81,0.033]
[1741460817882,20.0,137.78,137.74,1.5902]
[1741460818068,33.80069345,137.78,137.74,1.5902]
[1741460818583,39.60699345,137.78,137.74,1.5902]
[1741460820206,13.80069345,137.77,137.73,6.4855]
[1741460820392,13.80069345,137.75,137.73,0.033]
[1741460820784,19.60829345,137.75,137.73,0.033]
[1741460822084,13.80069345,137.74,137.73,0.033]
[1741460822298,13.80069345,137.75,137.73,0.033]
[1741460822506,13.80069345,137.76,137.73,0.033]
[1741460822679,13.80069345,137.75,137.73,0.033]
[1741460822881,13.80069345,137.76,137.73,0.033]
[1741460823904,13.80069345,137.75,137.73,0.033]
[1741460825602,19.60809345,137.76,137.73,0.033]
[1741460826290,13.80069345,137.76,137.73,0.033]
[1741460826495,95.10069345,137.77,137.73,0.033]
[1741460827796,19.60629345,137.8,137.75,13.80069345]
[1741460828177,13.80069345,137.79,137.74,13.80069345]
[1741460829399,13.80069345,137.79,137.74,19.60869345]
[1741460830592,19.60659345,137.79,137.74,19.60869345]
[1741460830906,13.80069345,137.79,137.74,19.60869345]
[1741460832200,13.80069345,137.78,137.73,19.99009345]
[1741460832701,19.60599345,137.81,137.76,13.80069345]
[1741460833682,13.80069345,137.81,137.76,13.80069345]
[1741460834006,19.60539345,137.82,137.77,13.80069345]
[1741460835184,5.804,137.84,137.8,13.80069345]
[1741460835390,19.60469345,137.84,137.79,13.80069345]
[1741460835794,13.80069345,137.84,137.79,13.80069345]
[1741460836911,19.60449345,137.84,137.79,13.80069345]
[1741460837312,19.60449345,137.84,137.79,19.60649345]
[1741460837714,171.11069345,137.85,137.8,13.80069345]
[1741460838111,176.91419345,137.85,137.8,13.80069345]
[1741460838319,13.80069345,137.84,137.8,13.80069345]
[1741460839007,157.31,137.85,137.81,13.80069345]
[1741460839210,171.11069345,137.85,137.8,19.60609345]
[1741460839417,13.80069345,137.84,137.79,13.80069345]
[1741460840497,19.63419345,137.85,137.8,13.80069345]
[1741460841188,19.63419345,137.85,137.8,19.60609345]
[1741460841393,19.63419345,137.85,137.8,13.80069345]
[1741460841595,13.80069345,137.82,137.78,14.5339]
[1741460842113,5.8335,137.85,137.78,8.1539]
[1741460842114,13.80069345,137.81,137.78,8.1539]
[1741460842415,13.80069345,137.8,137.78,1.6278]
[1741460842615,13.80069345,137.8,137.78,0.033]
[1741460843212,19.60649345,137.8,137.78,0.033]
[1741460844599,13.80069345,137.79,137.78,0.033]
[1741460845001,13.80069345,137.8,137.78,0.033]
[1741460845701,13.80069345,137.79,137.78,0.033]
[1741460846115,19.60619345,137.8,137.78,0.033]
[1741460846831,13.80069345,137.82,137.78,0.033]
[1741460847532,13.80069345,137.81,137.78,0.033]
[1741460847828,13.80069345,137.8,137.78,0.033]
[1741460848516,13.80069345,137.79,137.78,0.033]
[1741460850544,19.60659345,137.79,137.78,0.033]
[1741460850844,69.60659345,137.79,137.78,0.033]
[1741460853545,88.25624231,137.79,137.78,0.033]
[1741460853724,50.0,137.77,137.73,0.033]
[1741460854050,13.80069345,137.74,137.73,0.033]
[1741460854745,19.60869345,137.74,137.73,0.033]
[1741460857261,13.80069345,137.74,137.73,0.033]
[1741460857559,13.80069345,137.75,137.73,0.033]
[1741460858134,137.107,137.77,137.73,0.033]
[1741460858135,13.80069345,137.77,137.73,0.033]
[1741460859959,19.60739345,137.77,137.73,0.033]
[1741460860156,13.80069345,137.77,137.73,0.033]
[1741460861135,13.80069345,137.75,137.73,0.033]
[1741460861543,19.60829345,137.75,137.73,0.033]
[1741460861749,13.80069345,137.75,137.73,0.033]
[1741460862365,13.80069345,137.74,137.73,0.033]
[1741460864944,19.60869345,137.74,137.73,0.033]
[1741460865441,13.80069345,137.74,137.73,0.033]
[1741460866176,19.60869345,137.74,137.73,0.033]
[1741460866471,77.61389345,137.74,137.73,0.033]
[1741460866652,13.80069345,137.73,137.72,0.033]
[1741460867167,32.45034231,137.73,137.72,0.033]
[1741460868352,38.25874231,137.73,137.72,0.033]
[1741460868553,19.60909345,137.73,137.72,0.033]
[1741460875277,25.33490723,137.73,137.72,0.033]
[1741460875475,20.0,137.7,137.68,0.033]
[1741460875787,13.80069345,137.69,137.68,0.033]
[1741460876780,74.81356725,137.69,137.68,0.033]
[1741460876973,81.19356725,137.69,137.68,0.033]
[1741460878047,181.14321611,137.69,137.68,0.033]
[1741460880578,125.94044231,137.69,137.68,0.033]
[1741460880784,107.29079345,137.69,137.68,0.033]
[1741460881154,101.48069345,137.69,137.68,0.033]
[1741460881355,13.80069345,137.69,137.68,0.033]
[1741460881557,211.4,137.72,137.68,0.033]
[1741460881558,137.1089,137.72,137.68,0.033]
[1741460881781,13.80069345,137.69,137.68,0.033]
[1741460882584,19.61079345,137.69,137.68,0.033]
[1741460882892,13.80069345,137.69,137.68,0.033]
[1741460883062,13.80069345,137.7,137.68,0.033]
[1741460883268,5.8093,137.71,137.68,0.033]
[1741460883269,13.80069345,137.69,137.68,0.033]
[1741460883959,87.1089,137.72,137.68,0.033]
[1741460884178,13.80069345,137.71,137.68,0.033]
[1741460885662,87.1089,137.72,137.68,0.033]
[1741460885663,81.3,137.72,137.68,0.033]
[1741460885863,13.83069345,137.73,137.68,13.83369345]
[1741460886287,13.80069345,137.71,137.68,0.033]
[1741460886592,13.80069345,137.72,137.68,0.033]
[1741460887484,19.60989345,137.72,137.68,0.033]
[1741460889670,13.80069345,137.71,137.68,0.033]
[1741460891205,19.61009345,137.71,137.68,0.033]
[1741460892779,5.8094,137.71,137.68,0.033]
[1741460893389,0.03,137.72,137.68,0.033]
[1741460893591,0.03,137.72,137.69,13.80069345]
[1741460893791,0.03,137.72,137.71,13.80069345]
[1741460893975,0.03,137.72,137.69,13.80069345]
[1741460894290,5.8389,137.72,137.68,13.83369345]
[1741460894883,0.03,137.72,137.68,13.83369345]
[1741460895188,0.03,137.72,137.69,13.80069345]
[1741460895383,0.03,137.72,137.7,13.80069345]
[1741460895578,0.03,137.72,137.69,13.80069345]
[1741460897596,0.03,137.72,137.69,19.61079345]
[1741460897905,0.03,137.72,137.7,13.80069345]
[1741460899087,0.03,137.72,137.7,19.61039345]
[1741460899287,0.03,137.72,137.71,13.80069345]
[1741460899593,0.03,137.72,137.7,13.80069345]
[1741460900788,0.03,137.72,137.69,13.80069345]
[1741460901998,0.03,137.72,137.69,19.61069345]
[1741460903297,0.03,137.72,137.68,13.83369345]
[1741460904589,0.03,137.72,137.68,19.64419345]
[1741460904775,0.03,137.72,137.68,13.83369345]
[1741460905501,0.03,137.72,137.68,19.64419345]
[1741460905693,0.03,137.72,137.69,13.80069345]
[1741460906793,0.03,137.72,137.69,5.8101]
[1741460906996,0.03,137.72,137.71,13.80069345]
[1741460910800,0.03,137.72,137.71,19.60999345]
[1741460915489,0.03,137.72,137.71,13.80069345]
[1741460916504,0.03,137.72,137.71,38.25964231]
[1741460916697,0.03,137.72,137.71,46.36134231]
[1741460916896,0.03,137.72,137.71,27.71169345]
[1741460925031,0.03,137.72,137.71,13.911]
[1741460925200,0.03,137.72,137.71,5.8093]
[1741460925406,0.03,137.72,137.71,19.60999345]
[1741460926114,0.03,137.72,137.71,19.64299345]
[1741460928233,0.03,137.72,137.71,13.83369345]
[1741460928526,0.03,137.72,137.71,0.033]
[1741460929697,13.83069345,137.72,137.71,0.033]
[1741460930115,0.03,137.72,137.71,0.033]
[1741460930905,13.83069345,137.72,137.71,0.033]
[1741460931625,19.63949345,137.72,137.71,0.033]
[1741460935827,46.32834231,137.72,137.71,0.033]
[1741460939303,137.65311611,137.7,137.69,0.033]
[1741460939642,144.03311611,137.7,137.69,0.033]
[1741460940624,94.64004231,137.7,137.69,0.033]
[1741460941633,75.99039345,137.7,137.69,0.033]
[1741460941815,25.99039345,137.7,137.69,0.033]
[1741460942131,6.38,137.7,137.69,0.033]
[1741460942433,20.18069345,137.7,137.69,0.033]
[1741460943335,13.80069345,137.7,137.69,0.033]
[1741460943812,13.80069345,137.71,137.69,0.033]
[1741460944004,13.80069345,137.7,137.69,0.033]
[1741460945626,13.80069345,137.71,137.69,0.033]
[1741460947608,0.03,137.72,137.69,0.033]
[1741460949530,0.03,137.72,137.69,5.8431]
[1741460950228,0.03,137.71,137.7,13.80069345]
[1741460951631,0.03,137.71,137.69,19.64369345]
[1741460954035,0.03,137.71,137.7,13.80069345]
[1741460954519,0.03,137.71,137.7,15.30969345]
[1741460956532,0.03,137.71,137.7,21.11939345]
[1741460957044,0.03,137.71,137.7,39.76904231]
[1741460957537,0.03,137.81,137.71,20.64962469]
[1741460957711,0.03,137.81,137.77,13.80069345]
[1741460958415,0.03,137.81,137.78,13.80069345]
[1741460959040,0.03,137.81,137.77,19.60699345]
[1741460959333,0.03,137.81,137.76,19.60769345]
[1741460959334,13.83069345,137.81,137.76,19.60769345]
[1741460959535,13.83069345,137.81,137.76,13.80069345]
[1741460960917,13.83069345,137.81,137.76,19.60779345]
[1741460962947,0.03,137.81,137.76,19.60779345]
[1741460965251,0.03,137.81,137.78,13.80069345]
[1741460965548,0.03,137.81,137.77,13.80069345]
[1741460967051,0.03,137.81,137.77,19.60709345]
[1741460967959,0.03,137.81,137.78,13.80069345]
[1741460968137,0.03,137.81,137.78,19.60669345]
[1741460969832,0.03,137.81,137.79,13.80069345]
[1741460970037,0.03,137.81,137.8,13.80069345]
[1741460971258,0.03,137.81,137.79,13.80069345]
[1741460972154,0.03,137.81,137.77,13.80069345]
[1741460973547,0.03,137.81,137.77,19.60719345]
[1741460973747,0.03,137.81,137.78,13.80069345]
[1741460975863,0.03,137.81,137.78,19.60669345]
[1741460976042,0.03,137.81,137.79,13.80069345]
[1741460977958,0.03,137.81,137.8,32.45034231]
[1741460980565,0.03,137.81,137.8,38.25584231]
[1741460981570,0.03,137.81,137.8,19.60619345]
[1741460982758,0.03,137.81,137.8,38.25584231]
[1741460983863,0.03,137.85,137.81,18.64964886]
[1741460984065,0.03,137.87,137.84,52.45034231]
[1741460984249,1.6232,137.92,137.87,18.64964886]
[1741460984573,6.3464,137.93,137.89,13.80069345]
[1741460985979,0.03,137.95,137.92,19.60109345]
[1741460986183,0.03,137.95,137.92,13.80069345]
[1741460989171,0.03,137.95,137.92,19.60099345]
[1741460989370,0.03,137.95,137.93,13.80069345]
[1741460989754,0.03,137.95,137.94,13.80069345]
[1741460990154,0.03,137.95,137.93,13.80069345]
[1741460990377,0.03,137.95,137.94,13.80069345]
[1741460992054,0.03,137.95,137.94,19.60029345]
[1741460992990,0.03,137.95,137.93,13.80069345]
[1741460993886,0.03,137.95,137.94,33.80069345]
[1741460995589,0.03,137.95,137.92,13.80069345]
[1741460995792,0.03,137.95,137.91,13.80069345]
[1741460997574,0.03,137.95,137.92,13.80069345]
[1741460999301,0.03,137.95,137.93,13.80069345]
[1741461000173,0.03,137.95,137.94,13.80069345]
[1741461001299,0.03,137.95,137.92,13.80069345]
[1741461002606,0.03,137.95,137.91,5.8008]
[1741461002806,0.03,137.95,137.94,52.45034231]
[1741461003872,0.03,137.95,137.94,20.0]
[1741461004091,0.03,137.95,137.93,13.80069345]
[1741461004281,0.03,137.95,137.94,20.0]
[1741461005102,0.03,137.95,137.94,33.80069345]
[1741461006073,0.03,137.95,137.94,39.60029345]
[1741461006304,0.03,137.95,137.94,58.24994231]
[1741461006494,0.03,137.95,137.94,59.78884231]
[1741461007305,0.03,137.95,137.94,67.56512628]
[1741461007501,0.03,137.95,137.94,47.37657742]
[1741461007799,0.03,137.95,137.94,20.0]
[1741461008004,0.03,137.95,137.94,41.57697742]
[1741461008594,0.03,137.95,137.94,21.57697742]
[1741461008793,0.03,137.95,137.93,41.57697742]
[1741461009503,0.03,137.95,137.93,21.57697742]
[1741461009878,0.03,137.95,137.92,21.57697742]
[1741461010711,0.03,137.95,137.93,41.57697742]
[1741461011017,0.03,137.95,137.94,41.57697742]
[1741461011583,0.03,137.95,137.94,60.22662628]
[1741461011894,0.0001,137.95,137.94,40.22662628]
[1741461012302,0.0001,137.95,137.94,46.02622628]
[1741461015711,0.0001,137.95,137.94,47.1130869]
[1741461016028,0.0001,137.95,137.94,53.6198869]
[1741461016685,0.03,137.99,137.97,20.0]
[1741461016891,0.03,137.99,137.98,60.22662628]
[1741461018700,0.0001,137.99,137.98,60.22662628]
[1741461018894,0.0001,137.99,137.98,66.02452628]
[1741461020986,0.0001,137.99,137.94,6.5068]
[1741461021195,0.0001,137.99,137.93,19.64362817]
[1741461021196,0.0001,137.99,137.96,21.57697742]
[1741461021413,0.0001,137.99,137.98,20.0]
[1741461021910,0.0001,137.99,137.96,21.57697742]
[1741461023110,21.57697742,137.98,137.94,0.033]
[1741461023293,21.57697742,137.96,137.94,0.033]
[1741461023611,21.57697742,137.97,137.94,20.033]
[1741461024012,21.57697742,137.95,137.94,0.033]
[1741461024686,28.12017742,137.97,137.94,0.033]
[1741461024884,6.5432,137.97,137.94,21.60997742]
[1741461025109,23.07747742,137.99,137.94,0.033]
[1741461025313,21.57697742,137.97,137.94,0.033]
[1741461026111,21.57697742,137.96,137.94,0.033]
[1741461026423,21.57697742,137.97,137.94,0.033]
[1741461027789,21.57697742,137.96,137.94,0.033]
[1741461028597,21.57697742,137.95,137.94,0.033]
[1741461030814,6.48,137.96,137.94,0.033]
[1741461031412,28.05697742,137.96,137.94,0.033]
[1741461033335,21.57697742,137.95,137.94,0.033]
[1741461037119,27.37617742,137.95,137.94,0.033]